fUSD/lending_fUSD_20260108
["ID","MTS","AMOUNT","RATE_DAILY","PERIOD"]
[401007410,1767884865536,700.0,0.000152,30]
[401007411,1767884865698,700.0,0.000152,30]
[401007412,1767884866110,700.0,0.000152,30]
[401007413,1767884866219,700.0,0.000152,30]
[401007414,1767884866378,700.0,0.000152,30]
[401007415,1767884866464,700.0,0.000152,30]
[401007416,1767884866540,700.0,0.000152,30]
[401007417,1767884866978,700.0,0.000152,30]
[401007418,1767884867467,700.0,0.000152,30]
[401007419,1767884867967,990.05235193,0.000152,30]
[401007427,1767885032099,-239.0,0.00010849,2]
[401007428,1767885032110,-432.10505793,0.00010849,2]
[401007429,1767885032120,-500.0,0.00010849,2]
[401007430,1767885032130,-640.58146228,0.000109,2]
[401007431,1767885032202,-166.79889842,0.000109,2]
[401007432,1767885032211,-807.3803607,0.000109,2]
[401007433,1767885032221,-1200.0,0.00010948,2]
[401007434,1767885032230,-300.0,0.00010948,2]
[401007435,1767885032241,-300.0,0.00010948,2]
[401007436,1767885032250,-1500.39393073,0.00010949,2]
[401007437,1767885032261,-57231.9018786,0.00010949,2]
[401007449,1767885038280,-540.13320386,0.00010948,2]
[401007450,1767885038290,-500.0,0.00010948,2]
[401007451,1767885038300,-500.0,0.00010948,2]
[401007452,1767885038317,-500.0,0.00010948,2]
[401007453,1767885038338,-500.0,0.00010948,2]
[401007454,1767885038359,-500.0,0.00010948,2]
[401007455,1767885038374,-500.0,0.00010948,2]
[401007456,1767885038384,-248.62448422,0.00010948,2]
[401007457,1767885038394,-500.0,0.00010948,2]
[401007458,1767885038403,-500.0,0.00010948,2]
[401007459,1767885038415,-500.0,0.00010948,2]
[401007460,1767885038426,-500.0,0.00010948,2]
[401007461,1767885038436,-7947.97366018,0.00010949,2]
[401007631,1767885040207,-1533.99999997,0.00010949,2]
[401007634,1767885040228,-315.041611,0.00010949,2]
[401007636,1767885040240,-335.38,0.00010949,2]
[401007638,1767885040252,-518.21109884,0.00010949,2]
[401007640,1767885040264,-930617.09782068,0.00010949,2]
[401007642,1767885040274,-190.40555286,0.00010999,2]
[401007644,1767885040284,-300.0,0.00011021,2]
[401007646,1767885040294,-195.0,0.00011021,2]
[401007648,1767885040304,-300.0,0.00011037,2]
[401007650,1767885040313,-301.74210524,0.00011037,2]
[401007652,1767885040322,-195.0,0.00011037,2]
[401007654,1767885040335,-300.0,0.00011043,2]
[401007656,1767885040344,-150.0,0.00011043,2]
[401007658,1767885040354,-300.0,0.00011043,2]
[401007660,1767885040364,-151.0,0.00011044,2]
[401007662,1767885040375,-151.0,0.00011044,2]
[401007664,1767885040384,-151.0,0.00011044,2]
[401007666,1767885040394,-151.0,0.00011044,2]
[401007668,1767885040408,-151.0,0.00011044,2]
[401007670,1767885040418,-500.0,0.00011044,2]
[401007672,1767885040428,-500.0,0.00011044,2]
[401007674,1767885040438,-151.0,0.00011044,2]
[401007676,1767885040448,-151.0,0.00011044,2]
[401007677,1767885040458,-500.0,0.00011044,2]
[401007679,1767885040467,-151.0,0.00011044,2]
[401007681,1767885040477,-151.0,0.00011044,2]
[401007683,1767885040487,-151.0,0.00011044,2]
[401007685,1767885040496,-500.0,0.00011044,2]
[401007687,1767885040505,-151.0,0.00011044,2]
[401007689,1767885040515,-151.0,0.00011044,2]
[401007691,1767885040524,-500.0,0.00011044,2]
[401007693,1767885040534,-151.0,0.00011044,2]
[401007695,1767885040545,-151.56294487,0.00011044,2]
[401007697,1767885040555,-500.0,0.00011044,2]
[401007699,1767885040565,-151.0,0.00011044,2]
[401007701,1767885040574,-500.0,0.00011044,2]
[401007703,1767885040583,-500.0,0.00011044,2]
[401007705,1767885040596,-500.0,0.00011044,2]
[401007707,1767885040605,-500.0,0.00011044,2]
[401007709,1767885040615,-500.0,0.00011044,2]
[401007710,1767885040624,-500.0,0.00011044,2]
[401007712,1767885040634,-500.0,0.00011044,2]
[401007714,1767885040644,-500.0,0.00011044,2]
[401007716,1767885040654,-500.0,0.00011044,2]
[401007718,1767885040664,-500.0,0.00011044,2]
[401007720,1767885040674,-500.0,0.00011044,2]
[401007722,1767885040684,-500.0,0.00011044,2]
[401007724,1767885040693,-150.99,0.00011049,2]
[401007726,1767885040703,-999.99,0.00011049,2]
[401007728,1767885040713,-9999.99,0.00011049,2]
[401007730,1767885040723,-9999.99,0.00011049,2]
[401007732,1767885040733,-2639.33,0.00011049,2]
[401007734,1767885040742,-2545.257,0.0001105,2]
[401007736,1767885040752,-167.212,0.0001105,2]
[401007738,1767885040761,-1026.76992162,0.0001105,2]
[401007740,1767885040770,-3073.74520576,0.00011099,2]
[401007742,1767885040780,-10732.23173353,0.00011099,2]
[401007744,1767885040790,-271.8,0.00011172,2]
[401007746,1767885040803,-824.09,0.00011318,2]
[401007748,1767885040813,-824.09,0.00011592,2]
[401007750,1767885040823,-173.15293317,0.000116,2]
[401007752,1767885040833,-3073.74520569,0.00011766,2]
[401007754,1767885040843,-10732.23173345,0.00011767,2]
[401007756,1767885040853,-500.0,0.00011861,2]
[401007758,1767885040862,-150.0,0.00011861,2]
[401007760,1767885040872,-150.0,0.00011861,2]
[401007762,1767885040882,-500.0,0.00011861,2]
[401007764,1767885040892,-150.0,0.00011861,2]
[401007766,1767885040901,-500.0,0.00011861,2]
[401007768,1767885040911,-500.0,0.00011861,2]
[401007769,1767885040921,-500.0,0.00011861,2]
[401007771,1767885040931,-500.0,0.00011861,2]
[401007773,1767885040940,-150.0,0.00011861,2]
[401007775,1767885040950,-150.0,0.00011861,2]
[401007777,1767885040961,-150.0,0.00011861,2]
[401007779,1767885040970,-3111.0,0.00011861,2]
[401007782,1767885040984,-150.0,0.00011861,2]
[401007784,1767885040993,-824.09,0.00011866,2]
[401007786,1767885041003,-807.38036067,0.00011899,2]
[401007788,1767885041012,-807.38036067,0.00011899,2]
[401007790,1767885041022,-500.0,0.00011916,2]
[401007792,1767885041032,-152.08698658,0.00011916,2]
[401007794,1767885041041,-150.0,0.00011916,2]
[401007795,1767885041051,-500.0,0.00011916,2]
[401007797,1767885041061,-500.0,0.00011916,2]
[401007799,1767885041071,-500.0,0.00011916,2]
[401007844,1767885041521,-500.0,0.00011916,2]
[401007846,1767885041531,-500.0,0.00011916,2]
[401007847,1767885041541,-150.0,0.00011916,2]
[401007849,1767885041552,-3111.0,0.00011916,2]
[401007851,1767885041562,-150.0,0.00011916,2]
[401007853,1767885041572,-250.0,0.00011934,2]
[401007855,1767885041582,-532.10117033,0.00011971,2]
[401007857,1767885041592,-150.0,0.00011971,2]
[401007859,1767885041602,-500.0,0.00011971,2]
[401007861,1767885041612,-500.0,0.00011971,2]
[401007863,1767885041622,-500.0,0.00011971,2]
[401007865,1767885041632,-500.0,0.00011971,2]
[401007867,1767885041641,-500.0,0.00011971,2]
[401007868,1767885041651,-200.0,0.00011971,2]
[401007870,1767885041661,-3111.0,0.00011971,2]
[401007872,1767885041670,-200.0,0.00011971,2]
[401007874,1767885041680,-150.0,0.00012025,2]
[401007876,1767885041689,-500.0,0.00012025,2]
[401007878,1767885041699,-225.32921409,0.00012025,2]
[401007880,1767885041713,-500.0,0.00012025,2]
[401007882,1767885041724,-500.0,0.00012025,2]
[401007884,1767885041735,-500.0,0.00012025,2]
[401007886,1767885041744,-3111.0,0.00012025,2]
[401007888,1767885041755,-420.0,0.00012031,2]
[401007890,1767885041765,-420.0,0.00012031,2]
[401007892,1767885041775,-1680.0,0.00012043,2]
[401007893,1767885041786,-195.0,0.00012044,2]
[401007895,1767885041796,-300.0,0.00012044,2]
[401007897,1767885041806,-250.0,0.00012044,2]
[401007899,1767885041815,-1000.0,0.00012052,2]
[401007901,1767885041825,-240.19225777,0.0001208,2]
[401007903,1767885041834,-500.0,0.0001208,2]
[401007905,1767885041845,-639.97512683,0.0001208,2]
[401007907,1767885041855,-500.0,0.0001208,2]
[401007909,1767885041864,-500.0,0.0001208,2]
[401007911,1767885041873,-3111.0,0.0001208,2]
[401007913,1767885041883,-255.0,0.00012092,2]
[401007915,1767885041891,-300.0,0.00012099,2]
[401007917,1767885041901,-195.0,0.00012099,2]
[401007919,1767885041912,-250.0,0.00012099,2]
[401007921,1767885041922,-300.0,0.00012099,2]
[401007923,1767885041932,-188.94617776,0.00012099,2]
[401007925,1767885041942,-300.0,0.00012099,2]
[401007927,1767885041951,-195.0,0.00012099,2]
[401007929,1767885041964,-500.0,0.00012135,2]
[401007930,1767885041974,-385.48487047,0.00012135,2]
[401007932,1767885041984,-500.0,0.00012135,2]
[401007934,1767885041993,-3111.0,0.00012135,2]
[401007936,1767885042003,-824.09,0.0001214,2]
[401007938,1767885042012,-500.0,0.0001219,2]
[401007940,1767885042022,-500.0,0.0001219,2]
[401007942,1767885042031,-3111.0,0.0001219,2]
[401007944,1767885042041,-500.0,0.00012245,2]
[401007946,1767885042050,-500.0,0.00012245,2]
[401007948,1767885042060,-3111.0,0.00012245,2]
[401007950,1767885042070,-500.0,0.00012299,2]
[401007952,1767885042080,-500.0,0.00012299,2]
[401007953,1767885042090,-3111.0,0.00012299,2]
[401007955,1767885042100,-500.0,0.00012354,2]
[401007957,1767885042111,-3111.0,0.00012354,2]
[401007959,1767885042120,-289.85184336,0.00012409,2]
[401007961,1767885042130,-3111.0,0.00012409,2]
[401007963,1767885042139,-824.09,0.00012414,2]
[401007965,1767885042149,-6907.05616542,0.00012451,2]
[401007967,1767885042158,-3111.0,0.00012464,2]
[401007969,1767885042168,-3111.0,0.00012519,2]
[401007971,1767885042177,-3073.74520569,0.00012533,2]
[401007973,1767885042186,-10732.23173345,0.00012533,2]
[401007975,1767885042196,-3111.0,0.00012573,2]
[401007977,1767885042209,-3111.0,0.00012628,2]
[401007979,1767885042219,-3111.0,0.00012683,2]
[401007981,1767885042229,-824.09,0.00012688,2]
[401007982,1767885042238,-3111.0,0.00012738,2]
[401007984,1767885042248,-3111.0,0.00012793,2]
[401007986,1767885042258,-3111.0,0.00012847,2]
[401007988,1767885042268,-807.38036067,0.00012899,2]
[401007990,1767885042278,-807.38036067,0.00012899,2]
[401007992,1767885042288,-3111.0,0.00012902,2]
[401007994,1767885042298,-3111.0,0.00012957,2]
[401007996,1767885042308,-824.11,0.00012962,2]
[401007998,1767885042317,-500.0,0.00012975,2]
[401008000,1767885042327,-150.0,0.00012975,2]
[401008002,1767885042339,-500.0,0.00012975,2]
[401008004,1767885042351,-500.0,0.00012975,2]
[401008006,1767885042360,-500.0,0.00012975,2]
[401008008,1767885042370,-150.0,0.00012975,2]
[401008010,1767885042381,-150.0,0.00012975,2]
[401008012,1767885042390,-150.0,0.00012975,2]
[401008014,1767885042401,-200.0,0.00012975,2]
[401008016,1767885042412,-153.65010095,0.00012975,2]
[401008018,1767885042421,-500.0,0.00012975,2]
[401008020,1767885042431,-500.0,0.0001303,2]
[401008022,1767885042441,-150.0,0.0001303,2]
[401008024,1767885042451,-500.0,0.0001303,2]
[401008026,1767885042465,-500.0,0.0001303,2]
[401008028,1767885042475,-500.0,0.0001303,2]
[401008030,1767885042485,-150.0,0.0001303,2]
[401008032,1767885042494,-150.0,0.0001303,2]
[401008034,1767885042503,-500.0,0.0001303,2]
[401008036,1767885042512,-500.0,0.00013085,2]
[401008037,1767885042522,-150.0,0.00013085,2]
[401008039,1767885042532,-530.66926965,0.00013085,2]
[401008041,1767885042541,-500.0,0.00013085,2]
[401008043,1767885042551,-500.0,0.00013085,2]
[401008045,1767885042560,-154.16094674,0.00013085,2]
[401008047,1767885042569,-150.0,0.00013085,2]
[401008049,1767885042578,-500.0,0.00013085,2]
[401008051,1767885042587,-150.0,0.00013139,2]
[401008053,1767885042596,-150.0,0.00013139,2]
[401008055,1767885042606,-500.0,0.00013139,2]
[401008057,1767885042614,-396.98457547,0.00013139,2]
[401008059,1767885042623,-155.60141278,0.00013139,2]
[401008061,1767885042633,-500.0,0.00013139,2]
[401008063,1767885042642,-150.0,0.00013194,2]
[401008065,1767885042652,-500.0,0.00013194,2]
[401008066,1767885042661,-500.0,0.00013194,2]
[401008068,1767885042670,-587.0,0.00013222,2]
[401008070,1767885042680,-587.0,0.00013222,2]
[401008072,1767885042690,-433.0,0.00013241,2]
[401008074,1767885042700,-2351.0,0.00013247,2]
[401008076,1767885042712,-154.23035244,0.00013249,2]
[401008078,1767885042721,-631.3806178,0.00013249,2]
[401008080,1767885042731,-295.72412489,0.00013249,2]
[401008082,1767885042740,-3073.74520569,0.00013299,2]
[401008084,1767885042750,-10732.23173345,0.000133,2]
[401008086,1767885042760,-150.0,0.00013359,2]
[401008088,1767885042769,-150.0,0.00013359,2]
[401008089,1767885042779,-221.27,0.00013359,2]
[401008090,1767885042789,-150.0,0.00013359,2]
[401008091,1767885042798,-150.0,0.00013359,2]
[401008092,1767885042808,-150.0,0.00013359,2]
[401008093,1767885042817,-500.0,0.00013359,2]
[401008094,1767885042827,-150.0,0.00013359,2]
[401008095,1767885042836,-500.0,0.00013359,2]
[401008096,1767885042847,-150.0,0.00013414,2]
[401008097,1767885042856,-150.0,0.00013414,2]
[401008098,1767885042866,-150.0,0.00013414,2]
[401008099,1767885042875,-150.0,0.00013414,2]
[401008101,1767885042885,-500.0,0.00013414,2]
[401008102,1767885042895,-150.0,0.00013414,2]
[401008104,1767885042904,-500.0,0.00013414,2]
[401008105,1767885042914,-200.0,0.00013469,2]
[401008106,1767885042923,-150.0,0.00013469,2]
[401008107,1767885042933,-150.0,0.00013469,2]
[401008108,1767885042943,-150.0,0.00013469,2]
[401008109,1767885042953,-500.88287597,0.00013469,2]
[401008110,1767885042964,-500.0,0.00013469,2]
[401008111,1767885042974,-217.19962447,0.00013469,2]
[401008112,1767885042984,-190.40555285,0.00013539,2]
[401008113,1767885042995,-150.1,0.00013545,2]
[401008114,1767885043005,-150.1,0.00013545,2]
[401008115,1767885043014,-150.1,0.00013545,2]
[401008116,1767885043024,-150.1,0.00013545,2]
[401008117,1767885043034,-150.1,0.00013545,2]
[401008118,1767885043043,-272.5711073,0.00013545,2]
[401008119,1767885043052,-1000.0,0.00013558,2]
[401008120,1767885043062,-179.99676114,0.00013688,2]
[401008122,1767885043071,-151.0,0.00013695,2]
[401008123,1767885043080,-500.0,0.00013698,2]
[401008124,1767885043091,-500.0,0.00013698,2]
[401008126,1767885043100,-508.0483956,0.00013698,2]
[401008128,1767885043110,-500.0,0.00013698,2]
[401008130,1767885043119,-521.20759762,0.00013698,2]
[401008132,1767885043128,-446.86331983,0.00013698,2]
[401008134,1767885043138,-500.0,0.00013698,2]
[401008136,1767885043147,-500.0,0.00013698,2]
[401008138,1767885043156,-500.0,0.00013698,2]
[401008140,1767885043164,-500.0,0.00013698,2]
[401008142,1767885043173,-500.0,0.00013698,2]
[401008144,1767885043183,-500.0,0.00013698,2]
[401008146,1767885043192,-500.0,0.00013698,2]
[401008148,1767885043201,-500.0,0.00013698,2]
[401008149,1767885043213,-500.0,0.00013698,2]
[401008152,1767885043224,-500.0,0.00013698,2]
[401008154,1767885043233,-500.0,0.00013698,2]
[401008156,1767885043243,-500.0,0.00013698,2]
[401008158,1767885043253,-500.0,0.00013698,2]
[401008160,1767885043262,-500.0,0.00013698,2]
[401008162,1767885043273,-500.0,0.00013698,2]
[401008164,1767885043282,-500.0,0.00013698,2]
[401008166,1767885043291,-500.0,0.00013698,2]
[401008168,1767885043301,-500.0,0.00013698,2]
[401008170,1767885043310,-500.0,0.00013698,2]
[401008172,1767885043319,-500.0,0.00013698,2]
[401008174,1767885043329,-621.72362606,0.00013698,2]
[401008176,1767885043338,-500.0,0.00013698,2]
[401008178,1767885043350,-509.20271635,0.00013698,2]
[401008180,1767885043359,-500.0,0.00013698,2]
[401008182,1767885043369,-500.0,0.00013698,2]
[401008184,1767885043379,-500.0,0.00013698,2]
[401008186,1767885043388,-500.0,0.00013698,2]
[401008188,1767885043399,-500.0,0.00013698,2]
[401008190,1767885043410,-500.0,0.00013698,2]
[401008192,1767885043421,-500.0,0.00013698,2]
[401008194,1767885043433,-500.0,0.00013698,2]
[401008196,1767885043442,-500.0,0.00013698,2]
[401008198,1767885043451,-500.0,0.00013698,2]
[401008200,1767885043463,-500.0,0.00013698,2]
[401008202,1767885043473,-512.68399457,0.00013698,2]
[401008204,1767885043483,-200.0,0.00013699,2]
[401008205,1767885043492,-173.15293317,0.000137,2]
[401008208,1767885043503,-807.38036067,0.00013899,2]
[401008209,1767885043513,-2113.75,0.00013914,2]
[401008211,1767885043522,-1476.79,0.0001394,2]
[401008213,1767885043531,-3073.74520569,0.00014066,2]
[401008215,1767885043541,-10732.23173345,0.00014067,2]
[401008217,1767885043550,-200.0,0.00014115,2]
[401008220,1767885043560,-151.0,0.0001414,2]
[401008221,1767885043570,-151.0,0.0001414,2]
[401008223,1767885043579,-151.0,0.0001414,2]
[401008225,1767885043589,-151.0,0.0001414,2]
[401008227,1767885043598,-151.0,0.00014165,2]
[401008229,1767885043608,-151.0,0.00014166,2]
[401008231,1767885043617,-151.0,0.00014166,2]
[401008233,1767885043626,-250.0,0.00014335,2]
[401008235,1767885043636,-164.77040348,0.00014433,2]
[401008237,1767885043645,-150.0,0.00014433,2]
[401008239,1767885043655,-500.0,0.00014433,2]
[401008241,1767885043665,-150.0,0.00014433,2]
[401008244,1767885043676,-150.0,0.00014488,2]
[401008246,1767885043686,-500.0,0.00014488,2]
[401008248,1767885043695,-736.0,0.000145,2]
[401008250,1767885043706,-1336.36,0.00014504,2]
[401008252,1767885043715,-2502.08,0.00014504,2]
[401008253,1767885043725,-823.0,0.0001453,2]
[401008255,1767885043736,-823.0,0.0001453,2]
[401008257,1767885043745,-150.0,0.00014543,2]
[401008260,1767885043755,-500.0,0.00014543,2]
[401008262,1767885043765,-3292.0,0.00014572,2]
[401008263,1767885043775,-150.0,0.00014597,2]
[401008265,1767885043784,-490.48450822,0.00014597,2]
[401008268,1767885043794,-271.38436778,0.00014652,2]
[401008269,1767885043803,-1201.0,0.00014652,2]
[401008271,1767885043813,-914.0,0.00014652,2]
[401008273,1767885043822,-500.0,0.00014763,2]
[401008275,1767885043831,-500.0,0.0001477,2]
[401008277,1767885043841,-3073.74520569,0.00014833,2]
[401008279,1767885043850,-10732.23173345,0.00014833,2]
[401008281,1767885043860,-1000.0,0.00015065,2]
[401008283,1767885043869,-214.12448155,0.00015068,2]
[401008285,1767885043879,-978.83,0.00015118,2]
[401008287,1767885043889,-799.73155764,0.0001531,2]
[401008289,1767885043899,-3073.74520569,0.000156,2]
[401008291,1767885043908,-10732.23173345,0.000156,2]
[401008293,1767885043917,-4819.0,0.00015657,2]
[401008295,1767885043926,-2436.0,0.00015657,2]
[401008297,1767885043936,-565.0,0.00015657,2]
[401008299,1767885043946,-173.15293317,0.000158,2]
[401008301,1767885043959,-1252.0,0.0001588,2]
[401008303,1767885043968,-157.72323008,0.00015917,2]
[401008305,1767885043978,-523.0,0.00015968,2]
[401008307,1767885043988,-1152.0,0.00015968,2]
[401008309,1767885043998,-4609.0,0.00016029,2]
[401008311,1767885044007,-190.40555285,0.00016078,2]
[401008313,1767885044018,-9999.99,0.00016116,2]
[401008315,1767885044028,-218.49130081,0.00016128,2]
[401008317,1767885044038,-152.0,0.00016178,3]
[401008319,1767885044047,-150.0,0.00016352,2]
[401008321,1767885044057,-150.0,0.00016352,2]
[401008323,1767885044068,-200.0,0.00016352,2]
[401008325,1767885044078,-150.0,0.00016352,2]
[401008327,1767885044088,-150.0,0.00016352,2]
[401008330,1767885044098,-170.0,0.00016352,2]
[401008331,1767885044107,-150.0,0.00016352,2]
[401008333,1767885044116,-150.0,0.00016352,2]
[401008335,1767885044126,-150.0,0.00016352,2]
[401008338,1767885044136,-150.0,0.00016352,2]
[401008340,1767885044146,-150.0,0.00016352,2]
[401008342,1767885044157,-151.0,0.00016352,2]
[401008346,1767885044167,-151.047,0.00016352,2]
[401008348,1767885044176,-1330.0,0.00016352,2]
[401008350,1767885044185,-614.0,0.00016352,2]
[401008352,1767885044195,-3467.0,0.00016352,2]
[401008354,1767885044205,-1405.0,0.00016352,2]
[401008356,1767885044215,-1266.0,0.00016352,2]
[401008358,1767885044225,-505.0,0.00016352,2]
[401008360,1767885044237,-3073.74520569,0.00016366,2]
[401008362,1767885044246,-10732.23173345,0.00016367,2]
[401008364,1767885044255,-570.13547988,0.00016381,2]
[401008366,1767885044264,-500.0,0.00016438,2]
[401008368,1767885044274,-500.0,0.00016438,2]
[401008370,1767885044284,-500.0,0.00016438,2]
[401008372,1767885044293,-500.0,0.00016438,2]
[401008374,1767885044302,-500.0,0.00016438,2]
[401008376,1767885044311,-500.0,0.00016438,2]
[401008378,1767885044321,-500.0,0.00016438,2]
[401008380,1767885044330,-500.0,0.00016438,2]
[401008382,1767885044344,-500.0,0.00016438,2]
[401008384,1767885044353,-500.0,0.00016438,2]
[401008385,1767885044362,-500.0,0.00016438,2]
[401008387,1767885044373,-500.0,0.00016438,2]
[401008389,1767885044383,-500.0,0.00016438,2]
[401008391,1767885044393,-500.0,0.00016438,2]
[401008393,1767885044403,-500.0,0.00016438,2]
[401008395,1767885044415,-500.0,0.00016438,2]
[401008397,1767885044426,-500.0,0.00016438,2]
[401008399,1767885044435,-500.0,0.00016438,2]
[401008401,1767885044445,-500.0,0.00016438,2]
[401008403,1767885044454,-500.0,0.00016438,2]
[401008405,1767885044468,-500.0,0.00016438,2]
[401008408,1767885044478,-500.0,0.00016438,2]
[401008409,1767885044487,-500.0,0.00016438,2]
[401008412,1767885044498,-500.0,0.00016438,2]
[401008414,1767885044507,-500.0,0.00016438,2]
[401008416,1767885044517,-500.0,0.00016438,2]
[401008418,1767885044526,-500.0,0.00016438,2]
[401008420,1767885044536,-19909.02,0.00016438,2]
[401008422,1767885044546,-1000.0,0.00016571,2]
[401008425,1767885044566,-3286.3,0.00016701,2]
[401008427,1767885044577,-157.72323008,0.00016713,2]
[401008428,1767885044587,-3286.3,0.00016819,2]
[401008430,1767885044597,-3286.3,0.00016937,2]
[401008433,1767885044606,-4000.0,0.00017,2]
[401008435,1767885044616,-152.0,0.00017021,4]
[401008437,1767885044625,-3286.3,0.00017055,2]
[401008439,1767885044635,-500.0,0.00017098,2]
[401008441,1767885044645,-500.0,0.00017098,2]
[401008443,1767885044654,-500.0,0.00017098,2]
[401008445,1767885044663,-516.18277591,0.00017098,2]
[401008447,1767885044673,-151.0,0.00017099,2]
[401008449,1767885044683,-1316.20759869,0.00017099,2]
[401008450,1767885044692,-250.0,0.00017099,2]
[401008453,1767885044702,-250.0,0.00017099,2]
[401008455,1767885044714,-500.0,0.00017099,2]
[401008457,1767885044724,-151.0,0.00017099,2]
[401008459,1767885044733,-250.0,0.00017099,2]
[401008461,1767885044742,-250.0,0.00017099,2]
[401008463,1767885044752,-250.0,0.00017099,2]
[401008465,1767885044762,-250.0,0.00017099,2]
[401008467,1767885044772,-250.0,0.00017099,2]
[401008469,1767885044782,-250.0,0.00017099,2]
[401008471,1767885044791,-245.3952879,0.00017099,2]
[401008473,1767885044800,-250.0,0.00017099,2]
[401008475,1767885044810,-250.0,0.00017099,2]
[401008477,1767885044820,-574.12855637,0.00017099,2]
[401008479,1767885044829,-250.0,0.00017099,2]
[401008481,1767885044838,-500.0,0.00017099,2]
[401008483,1767885044848,-250.0,0.00017099,2]
[401008485,1767885044857,-500.0,0.00017099,2]
[401008487,1767885044867,-250.0,0.00017099,2]
[401008489,1767885044876,-500.0,0.00017099,2]
[401008491,1767885044886,-620.0,0.00017099,2]
[401008493,1767885044896,-250.0,0.00017099,2]
[401008495,1767885044906,-250.0,0.00017099,2]
[401008497,1767885044920,-721.12765535,0.00017099,2]
[401008499,1767885044930,-1500.0,0.00017099,2]
[401008501,1767885044940,-1500.0,0.00017099,2]
[401008503,1767885044950,-322.6107,0.00017099,2]
[401008505,1767885044961,-1500.0,0.00017099,2]
[401008508,1767885044971,-500.0,0.00017099,2]
[401008510,1767885044982,-1500.0,0.00017099,2]
[401008512,1767885044992,-500.0,0.00017099,2]
[401008514,1767885045002,-1500.0,0.00017099,2]
[401008516,1767885045012,-500.0,0.00017099,2]
[401008518,1767885045021,-1500.0,0.00017099,2]
[401008520,1767885045032,-500.0,0.00017099,2]
[401008522,1767885045041,-1500.0,0.00017099,2]
[401008524,1767885045051,-500.0,0.00017099,2]
[401008526,1767885045061,-1500.0,0.00017099,2]
[401008528,1767885045071,-500.0,0.00017099,2]
[401008530,1767885045081,-151.0,0.00017099,2]
[401008532,1767885045091,-1500.0,0.00017099,2]
[401008534,1767885045100,-500.0,0.00017099,2]
[401008536,1767885045109,-1500.0,0.00017099,2]
[401008538,1767885045123,-500.0,0.00017099,2]
[401008540,1767885045133,-500.0,0.00017099,2]
[401008543,1767885045144,-1500.0,0.00017099,2]
[401008545,1767885045154,-500.0,0.00017099,2]
[401008547,1767885045164,-500.0,0.00017099,2]
[401008549,1767885045174,-500.0,0.00017099,2]
[401008551,1767885045184,-500.0,0.00017099,2]
[401008553,1767885045193,-500.0,0.00017099,2]
[401008555,1767885045203,-500.0,0.00017099,2]
[401008557,1767885045213,-500.0,0.00017099,2]
[401008559,1767885045223,-500.0,0.00017099,2]
[401008561,1767885045233,-500.0,0.00017099,2]
[401008563,1767885045243,-260.34840278,0.00017099,2]
[401008565,1767885045253,-500.0,0.00017099,2]
[401008567,1767885045264,-151.0,0.00017099,2]
[401008569,1767885045274,-2000.0,0.00017099,2]